Cogmind - Beta 14 *** ADVENTURER MODE // 2024.08.31 @ 20:38:40 Player: LegoMDS Result: Destroyed by H-66 Slayer with Gauss Rifle Performance ------------- Evolutions (5) 2500 Regions Visited (10) 2000 Robots Destroyed (174) 870 Value Destroyed (6161) 6161 Prototype IDs (20) 400 Alien Tech Used (0) 0 Bonus (816) 816 TOTAL SCORE: 12747 Bonus ------- High Alert Combat Kills 107 Follower Combat Kills 748 Friendly Fire -39 Cogmind --------- Core Integrity 0/1000 Matter 300/300 Energy 150/150 System Corruption 8% Temperature Cool (0) Movement Core (200) Ox3 Location -5/Factory Parts ------- > --- POWER (3) -------- Micro Fission Core > --- PROPULSION (5) --- (None) > --- UTILITY (5) ------ Improved Heat Sink Targeting Computer Improved Targeting Computer Improved Target Analyzer > --- WEAPON (4) ------- Improved Remote Datajack Kinetic Spear > --- INVENTORY (5) ---- Advanced Weight Redist. System Advanced ECM Suite Heavy Phase Cannon Missile Launcher Improved Datajack Peak State ------------ > --- POWER ------------ Improved Deuterium Engine Cooled Deuterium Engine Light Fission Core > --- PROPULSION ------- Cesium-ion Thruster Xenon Bombardment Thruster Impulse Thruster Array > --- UTILITY ---------- Advanced Weight Redist. System Advanced Targeting Computer Transmission Jammer Hacking Suite Recalibrator > --- WEAPON ----------- Flak Gun Mini Assault Cannon Kinetic Spear > --- INVENTORY -------- Cesium-ion Thruster Advanced ECM Suite Advanced Shield Generator Missile Launcher Improved Datajack [Rating: 71] Favorites ----------- Power Micro Nuclear Core Engine Cooled Deuterium Engine Power Core Micro Nuclear Core Propulsion Titanium Leg Treads Light Treads Leg Titanium Leg Wheel Subdweller Monowheel Hover Unit Antigrav System Flight Unit Improved VTOL Module Utility Advanced Targeting Computer Device Transmission Jammer Storage Small Storage Unit Processor Advanced Targeting Computer Hackware Hacking Suite Protection Improved Propulsion Shielding Weapon Scythe Energy Gun Advanced Beam Rifle Energy Cannon Heavy Phase Cannon Ballistic Gun Flak Gun Ballistic Cannon Mini Assault Cannon Launcher Grenade Launcher Special Weapon Mining Laser Impact Weapon Great Maul Slashing Weapon Scythe Piercing Weapon Kinetic Spear Special Melee Weapon Improved Datajack Build | -11 -10 -10 -10 -8 -7 -7 -7 -6 -6 -5 ------- Run | Yrd Mat Min Sub Mat Fac Was Fac Fac Ext Fac Slots Evolved 10 | . . . . 4 2 . . 2 . 2 Power 2 | . . . . . 1 . . 1 . . Propulsion 3 | . . . . 1 . . . 1 . 1 Utility 3 | . . . . 2 1 . . . . . Weapon 2 | . . . . 1 . . . . . 1 Parts Attached 201 | 4 4 7 12 59 20 3 18 9 33 32 Power 46 | 1 1 1 3 8 9 . 7 3 6 7 Engine 15 | 1 . 1 2 5 2 . 2 1 1 . Core 31 | . 1 . 1 3 7 . 5 2 5 7 Reactor . | . . . . . . . . . . . Propulsion 41 | 1 1 2 3 16 . . 2 3 9 4 Treads 2 | . . . . 1 . . . . 1 . Leg 14 | 1 1 2 2 4 . . . . 4 . Wheel 1 | . . . 1 . . . . . . . Hover 1 | . . . . . . . . . . 1 Flight 23 | . . . . 11 . . 2 3 4 3 Utility 49 | . 2 . . 15 6 1 5 1 7 12 Device 37 | . 1 . . 11 5 1 4 1 6 8 Storage 1 | . 1 . . . . . . . . . Processor 7 | . . . . 3 . . . . . 4 Hackware 1 | . . . . . . . 1 . . . Protection 3 | . . . . 1 1 . . . 1 . Artifact . | . . . . . . . . . . . Weapon 65 | 2 . 4 6 20 5 2 4 2 11 9 Energy Gun 9 | 1 . . 1 4 1 . . . . 2 Energy Cannon 1 | . . . . . . . . . . 1 Ballistic Gun 25 | 1 . 4 2 8 3 . 1 1 2 3 Ballistic Cannon 6 | . . . . 2 1 . 1 1 1 . Launcher 4 | . . . . 2 . . . . 2 . Special Weapon 5 | . . . 3 . . . . . . 2 Impact Weapon 1 | . . . . . . . . . 1 . Slashing Weapon 8 | . . . . 3 . 1 . . 4 . Piercing Weapon 4 | . . . . . . 1 1 . 1 1 Special Melee Weapon 2 | . . . . 1 . . 1 . . . Unidentified Prototypes 13 | . . . . 6 2 1 2 . . 2 Parts Lost 70 | . . 2 5 14 2 2 4 1 12 28 Power 14 | . . . 1 2 1 1 1 . 4 4 Propulsion 20 | . . . 3 5 . . 1 1 3 7 Utility 16 | . . . 1 2 1 1 . . 3 8 Weapon 20 | . . 2 . 5 . . 2 . 2 9 Highest Loss Streak 6 | . . 2 2 3 1 2 2 1 2 6 To Critical Strikes 2 | . . . 1 . . . . . . 1 Average Slot Usage (%) 86 | . 94 99 87 88 96 92 90 86 78 55 Engine 4 | . 9 14 9 . 2 . 3 8 2 . Core 6 | . 4 . 3 8 10 12 7 9 7 5 Leg 12 | . 25 28 19 15 . . . . 2 . Flight 8 | . . . . 4 23 23 22 20 14 10 Device 18 | . 13 14 10 23 27 26 22 19 20 11 Storage 4 | . 11 14 14 1 . . . . . . Processor 5 | . . . . 8 7 7 7 6 6 9 Hackware 1 | . . . . . . . 7 6 2 . Energy Gun 4 | . 14 . 9 5 5 7 3 . . 1 Ballistic Gun 9 | . 14 27 13 9 7 5 1 3 6 3 Ballistic Cannon 1 | . . . . 2 1 . . 4 4 2 Slashing Weapon 3 | . . . . 6 7 7 6 . 3 2 Peak Build Rating 71 | 4 10 15 15 40 47 49 52 71 70 70 Average Rating 32 | 2 7 14 9 28 44 42 45 64 58 45 On Entrance 29 | . 4 10 15 9 40 45 39 46 66 45 Naked Turns . | . . . . . . . . . . . Heaviest Build 42 | 9 15 20 20 26 28 25 29 39 42 31 Greatest Support 60 | 10 20 25 25 60 24 24 25 36 40 36 Greatest Overweight (x) 7 | 1 . . 1 7 1 1 1 1 6 4 Average Overweight (x) . | . . . . . . . . . . . Largest Inventory Capacity 8 | 5 8 8 8 8 5 5 5 5 5 5 Average Capacity 5 | 5 7 8 8 5 5 5 5 5 5 5 Most Carried 8 | 5 8 8 8 8 5 5 5 5 5 5 Average Carried 5 | 2 4 7 7 5 4 4 4 4 4 4 Final Capacity 8 | 5 8 8 8 5 5 5 5 5 5 5 Final Carried 8 | 3 8 8 8 5 4 5 4 5 5 5 Class Distribution -------------------- 27% | Mutant 19% | Scavenger-Mutant 17% | Infiltrator-Mutant 7% | Commander-Mutant 6% | Hacker-Mutant 5% | Hacker-Sprinter 5% | Sprinter 4% | Commander-Sprinter Dominant Class ---------------- Mutant | -10/Materials Scavenger-Mutant | -10/Mines Scavenger-Mutant | -10/Subcaves Infiltrator-Mutant | -8/Materials Sprinter | -7/Factory Mutant | -7/Waste Hacker-Sprinter | -7/Factory Hacker-Mutant | -6/Factory Commander-Mutant | -6/Extension Mutant | -5/Factory Resources | -11 -10 -10 -10 -8 -7 -7 -7 -6 -6 -5 ----------- Run | Yrd Mat Min Sub Mat Fac Was Fac Fac Ext Fac Matter Collected 4168 | 238 138 157 244 1360 361 . 338 101 803 428 Remotely . | . . . . . . . . . . . Salvage Created 6591 | . 412 331 455 2102 683 . 420 386 978 824 Parts 400 | . 34 23 36 119 43 . 24 26 42 53 Haulers Intercepted 10 | . . . . 6 . . 1 . 2 1 Recyclers Shooed 2 | . 1 . . . . . . . . 1 Parts Field Recycled . | . . . . . . . . . . . Retrieved Matter . | . . . . . . . . . . . Parts Self-Destructed 16 | . . . 16 . . . . . . . Prevented . | . . . . . . . . . . . Kills | -11 -10 -10 -10 -8 -7 -7 -7 -6 -6 -5 ------- Run | Yrd Mat Min Sub Mat Fac Was Fac Fac Ext Fac Combat Hostiles Destroyed 140 | . 13 9 13 45 16 . 8 8 14 14 Melee 18 | . . . . . 1 . 4 2 7 4 Guns 102 | . 13 9 13 34 14 . 4 5 5 5 Cannons 18 | . . . . 9 1 . . 1 2 5 AOE 2 | . . . . 2 . . . . . . Classes Destroyed 14 | . 3 2 2 6 1 . . . . . Worker 4 | . . 1 . 2 1 . . . . . Builder 2 | . . . . 1 1 . . . . . Hauler 10 | . . . . 6 . . 1 . 2 1 Recycler 1 | . . . . 1 . . . . . . Operator 2 | . . . . 1 . . . . . 1 Turret 2 | . . . 2 . . . . . . . Watcher 13 | . 1 . . 5 . . 1 3 2 1 Swarmer 43 | . 6 3 4 14 7 . . 3 2 4 Grunt 41 | . 7 4 . 13 3 . 4 3 7 . Duelist 1 | . . . . 1 . . . . . . Sentry 30 | . . 2 . 15 3 . 2 2 5 1 Hunter 8 | . . . . 2 1 . 1 . . 4 Programmer 8 | . . . . . 2 . 1 . . 5 Subdweller 9 | . . . 9 . . . . . . . Best Kill Streak 7 | . 4 4 7 5 6 . 3 3 4 4 Combat Bots Only 6 | . 4 4 4 4 6 . 2 3 4 4 Max Kills in Single Turn 2 | . 2 2 1 2 2 . 1 2 1 1 Gunslinging 1 | . 1 1 . 1 . . . . . . Exploded 1 | . . . . 1 . . . . . . Melee 1 | . . . . . 1 . 1 1 1 1 Uniques/NPCs Destroyed . | . . . . . . . . . . . Combat | -11 -10 -10 -10 -8 -7 -7 -7 -6 -6 -5 -------- Run | Yrd Mat Min Sub Mat Fac Was Fac Fac Ext Fac Hostile Shots Fired 1329 | . 55 54 102 253 116 1 93 62 324 269 Missed 468 | . 16 22 35 84 59 . 32 35 106 79 Damage Taken 9301 | . 295 331 590 2009 620 37 499 382 1651 2887 Core 2356 | . 15 43 115 411 147 . 123 121 380 1001 Absorbed by Shields 652 | . . . . . . . . . 556 96 Redirected to Shielding 104 | . . . . . . . . . 22 82 Ignored by Resistances 2925 | . 96 96 184 573 186 10 162 107 667 844 Regen/Repaired (Parts) 158 | . . . . . . . 51 58 . 49 Core Remaining (%) 51 | 100 . . 30 25 . . 61 . 41 . Volleys Fired 438 | . 32 22 61 143 41 . 28 19 43 49 Largest 3 | . 2 2 2 3 2 . 1 2 2 2 Hottest 118 | . 70 70 100 101 98 . 70 76 81 118 Shots Fired 749 | . 63 42 109 276 82 . 28 28 66 55 Gun 643 | . 63 42 89 250 78 . 28 12 43 38 Cannon 79 | . . . . 20 4 . . 16 22 17 Launcher 7 | . . . . 6 . . . . 1 . Special 20 | . . . 20 . . . . . . . Kinetic 496 | . 32 35 55 175 45 . 26 28 65 35 Thermal 230 | . 31 7 54 95 37 . 2 . . 4 Explosive 7 | . . . . 6 . . . . 1 . Electromagnetic 16 | . . . . . . . . . . 16 Robot Hit Streak 24 | . 11 16 18 20 22 . 19 14 24 11 Robot Miss Streak 5 | . 3 4 3 3 5 . 4 5 2 3 Penetration Max 2 | . . . . 1 . . . . 2 . Secondary Targets 11 | . 3 2 . 4 2 . . . . . Max Gunslinging Chain 1 | . 1 1 . 1 1 . . . . . Autonomous 66 | . . . 34 32 . . . . . . Shots Hit Robots 675 | . 45 33 80 224 66 . 38 25 83 81 Core Hits 418 | . 21 14 32 128 44 . 45 32 75 27 Critical Kills 5 | . . . 1 1 . . . . 2 1 Critical Parts Destroyed 7 | . . 1 . 3 2 . . . 1 . Critical Strikes 47 | . 4 2 1 9 8 . 1 2 8 12 Burn 18 | . 4 1 . 5 6 . . . . 2 Destroy 13 | . . 1 1 4 2 . . . 4 1 Blast 2 | . . . . . . . . . 1 1 Corrupt 1 | . . . . . . . . . . 1 Sever 4 | . . . . . . . 1 . . 3 Impale 9 | . . . . . . . . 2 3 4 Melee Attacks 116 | . . . . 2 1 . 15 8 47 43 Impact . | . . . . . . . . . . . Slashing 61 | . . . . 2 1 . 15 . 27 16 Piercing 55 | . . . . . . . . 8 20 27 Sneak Attacks 9 | . . . . 2 . . . 1 2 4 Combat Hostiles 1 | . . . . . . . . 1 . . Follow-up Attacks . | . . . . . . . . . . . Damage Inflicted 15210 | . 601 512 1030 4470 1559 . 983 786 2463 2806 Guns 9397 | . 601 455 1030 3573 1299 . 653 277 775 734 Cannons 1458 | . . . . 336 63 . . 221 445 393 Explosions 697 | . . 57 . 409 164 . . . 67 . Melee 3658 | . . . . 152 33 . 330 288 1176 1679 Ramming . | . . . . . . . . . . . Kinetic 7589 | . 308 381 643 2460 642 . 606 498 1220 831 Thermal 3085 | . 293 131 387 1449 720 . 47 . . 58 Explosive 476 | . . . . 409 . . . . 67 . Electromagnetic 402 | . . . . . 164 . . . . 238 Impact . | . . . . . . . . . . . Slashing 1744 | . . . . 152 33 . 330 . 571 658 Piercing 1914 | . . . . . . . . 288 605 1021 Highest Corruption 8 | . . . . 6 1 5 8 1 5 8 Average Corruption 3 | . . . . 5 1 4 6 1 1 3 Corruption Purged . | . . . . . . . . . . . Corruption Blocked 2 | . . . . . . . . . . 2 Effects 131 | . . . . 88 2 2 21 . 10 8 Message Errors 28 | . . . . 17 . 1 4 . 4 2 Matter Fused 29 | . . . . 21 . . 4 . 2 2 Heat Flow Errors 18 | . . . . 13 . . 3 . . 2 Energy Discharges 23 | . . . . 15 2 1 2 . 2 1 Parts Rejected 2 | . . . . . . . 2 . . . Data Loss (minor) 11 | . . . . 7 . . 4 . . . Data Loss (major) 10 | . . . . 7 . . 2 . 1 . Misfires 7 | . . . . 6 . . . . 1 . Alerts 3 | . . . . 2 . . . . . 1 Overload Shots . | . . . . . . . . . . . Overflow Damage 328 | . . 17 . 18 . . 18 4 40 231 Projectiles 3 | . . . . . . . . 3 . . Explosions 35 | . . 17 . 18 . . . . . . Melee 290 | . . . . . . . 18 1 40 231 Knockbacks 15 | . . . . 9 1 . . 1 1 3 Impact . | . . . . . . . . . . . Kinetic 14 | . . . . 8 1 . . 1 1 3 Secondary 1 | . . . . 1 . . . . . . Self-Inflicted Damage 146 | . . . . 146 . . . . . . Shots 5 | . . . . 5 . . . . . . Rammed . | . . . . . . . . . . . Targets Rammed . | . . . . . . . . . . . Kicked . | . . . . . . . . . . . Crushed . | . . . . . . . . . . . Highest Temperature 388 | . 150 103 244 304 210 . 265 388 33 170 Average Temperature 75 | . 49 38 72 105 59 . 54 108 14 61 Received Heat Transfer 2834 | . 126 198 294 1017 183 . 168 204 485 159 Effects 4 | . . . . 3 . . . 1 . . Shutdowns 1 | . . . . . . . . 1 . . Interference 3 | . . . . 3 . . . . . . Siege Activations . | . . . . . . . . . . . Robots Corrupted . | . . . . . . . . . . . Combat Hostiles . | . . . . . . . . . . . Parts Fried 8 | . . . . . . . . . 3 5 Impact Corruptions . | . . . . . . . . . . . Robots Melted . | . . . . . . . . . . . Combat Hostiles . | . . . . . . . . . . . Parts Melted 19 | . 1 2 2 6 5 . . . . 3 Heat Transferred 8651 | . 1147 346 1400 3743 1591 . 74 . . 350 Parts Sabotaged . | . . . . . . . . . . . Parts Stolen . | . . . . . . . . . . . Parts Stripped . | . . . . . . . . . . . Power Chain Reactions . | . . . . . . . . . . . Alert | -11 -10 -10 -10 -8 -7 -7 -7 -6 -6 -5 ------- Run | Yrd Mat Min Sub Mat Fac Was Fac Fac Ext Fac Peak Influence 775 | . 279 262 . 369 478 129 330 281 775 229 Initial 129 | . . 25 . . 11 129 63 56 85 55 Average 180 | . 105 86 . 124 305 111 170 170 397 94 Maximum Alert Level 3 | . 1 1 . 1 2 . 1 1 3 1 Low Security (%) 64 | 100 77 94 . 75 16 100 68 67 12 96 Level 1 26 | . 22 5 . 24 57 . 31 32 41 3 Level 2 9 | . . . . . 25 . . . 42 . Level 3 . | . . . . . . . . . 3 . Level 4 . | . . . . . . . . . . . Level 5 . | . . . . . . . . . . . High Security . | . . . . . . . . . . . Max Security . | . . . . . . . . . . . Squads Dispatched 35 | . 1 . . 6 7 . 6 2 4 9 Investigation 17 | . 1 . . 1 4 . 2 1 3 5 Extermination 5 | . . . . . 2 . 1 . . 2 Reinforcement 8 | . . . . 2 1 . 3 1 . 1 Assault 1 | . . . . . . . . . 1 . Garrison 4 | . . . . 3 . . . . . 1 Intercept . | . . . . . . . . . . . Searches Triggered . | . . . . . . . . . . . Construction Impeded 2 | . . . . 1 . . 1 . . . Haulers Reinforced 1 | . . . . . . . 1 . . . Active Scanning Responses . | . . . . . . . . . . . Cargo Convoy Interrupts 1 | . . . . . . . . . . 1 Stealth | -11 -10 -10 -10 -8 -7 -7 -7 -6 -6 -5 --------- Run | Yrd Mat Min Sub Mat Fac Was Fac Fac Ext Fac Distress Signals 4 | . . . . 1 . . 1 . 1 1 Communications Jammed 48 | . . . . 31 . . . . 17 . Distress Signals 48 | . . . . 31 . . . . 17 . Times Spotted 224 | . 19 9 17 57 18 7 11 13 45 28 Peak Tracking Total 7 | . 5 3 6 4 4 6 4 3 7 4 Tactical Retreats 13 | . 1 1 1 1 . 2 . 1 2 4 Traps | -11 -10 -10 -10 -8 -7 -7 -7 -6 -6 -5 ------- Run | Yrd Mat Min Sub Mat Fac Was Fac Fac Ext Fac Traps Triggered 12 | . . . . 4 2 . . 3 3 . Indirectly . | . . . . . . . . . . . Trap Hack Attempts . | . . . . . . . . . . . Triggered . | . . . . . . . . . . . Disarmed . | . . . . . . . . . . . Reprogrammed . | . . . . . . . . . . . Reused 1 | . . . . 1 . . . . . . Traps Extracted . | . . . . . . . . . . . Installed 1 | . . . . 1 . . . . . . Triggered 2 | . . . . 1 . . . . . 1 Most Traps Carried 1 | . . . 1 1 . . . . . . Machines | -11 -10 -10 -10 -8 -7 -7 -7 -6 -6 -5 ---------- Run | Yrd Mat Min Sub Mat Fac Was Fac Fac Ext Fac Machines Disabled 24 | . 1 2 2 3 9 . . 1 6 . Max in Single Turn 6 | . 1 2 1 1 6 . . 1 1 . Garrison Access 3 | . . . . 1 1 . . 1 . . Machines Repaired . | . . . . . . . . . . . Machines Dismantled . | . . . . . . . . . . . Machines Sabotaged . | . . . . . . . . . . . Overloaded Fab Kills . | . . . . . . . . . . . Hacking | -11 -10 -10 -10 -8 -7 -7 -7 -6 -6 -5 --------- Run | Yrd Mat Min Sub Mat Fac Was Fac Fac Ext Fac Machines Accessed 52 | . 6 . 1 11 6 . 3 6 12 7 Terminals 34 | . 6 . . 9 2 . . 3 11 3 Fabricators 5 | . . . . . 2 . 1 1 . 1 Repair Stations 4 | . . . . . . . 1 1 . 2 Recycling Units 3 | . . . . . 1 . . . 1 1 Scanalyzers 2 | . . . . 1 . . 1 . . . Garrison Access 3 | . . . . 1 1 . . 1 . . Total Hacks 133 | . 21 . 4 32 14 . 10 13 19 20 Successful 70 | . 8 . 4 18 7 . 6 9 12 6 Failed 63 | . 13 . . 14 7 . 4 4 7 14 Catastrophic 9 | . 1 . . 1 2 . . . 2 3 Database Lockouts . | . . . . . . . . . . . Manual 1 | . . . . . . . . . . 1 Terminals 82 | . 21 . . 26 4 . . 6 17 8 Fabricators 14 | . . . . . 5 . 4 2 . 3 Repair Stations 15 | . . . . . . . 3 4 . 8 Recycling Units 5 | . . . . . 2 . . . 2 1 Scanalyzers 7 | . . . . 4 . . 3 . . . Garrison Access 6 | . . . . 2 3 . . 1 . . Terminal Hacks 42 | . 8 . 4 13 2 . . 3 11 1 Record 6 | . . . 4 1 . . . 1 . . Part Schematic 4 | . . . . . 1 . . . 3 . Robot Schematic 1 | . . . . . 1 . . . . . Robot Analysis 3 | . . . . 1 . . . 1 . 1 Prototype ID Bank 5 | . 2 . . 3 . . . . . . Open Door 8 | . . . . . . . . . 8 . Branch Access Points 1 | . . . . 1 . . . . . . Terminal Index 1 | . . . . 1 . . . . . . Alert Level 1 | . . . . . . . . 1 . . Locate Traps 3 | . 3 . . . . . . . . . Hauler Manifests 4 | . . . . 4 . . . . . . Registered Components 1 | . 1 . . . . . . . . . Registered Prototypes 1 | . 1 . . . . . . . . . Zone Layout 3 | . 1 . . 2 . . . . . . Fabricator Hacks 6 | . . . . . 3 . 2 1 . . Load Schematic 3 | . . . . . 2 . 1 . . . Build 3 | . . . . . 1 . 1 1 . . Repair Station Hacks 10 | . . . . . . . 2 4 . 4 Scan Component 6 | . . . . . . . 1 2 . 3 Repair 4 | . . . . . . . 1 2 . 1 Recycling Unit Hacks 3 | . . . . . 1 . . . 1 1 Report Inventory 3 | . . . . . 1 . . . 1 1 Scanalyzer 6 | . . . . 4 . . 2 . . . Insert Component 3 | . . . . 2 . . 1 . . . Analyze 3 | . . . . 2 . . 1 . . . Garrison Access Hacks 3 | . . . . 1 1 . . 1 . . Seal Access 3 | . . . . 1 1 . . 1 . . Unauthorized Hacks . | . . . . . . . . . . . Terminals . | . . . . . . . . . . . Fabricators . | . . . . . . . . . . . Repair Stations . | . . . . . . . . . . . Recycling Units . | . . . . . . . . . . . Scanalyzers . | . . . . . . . . . . . Garrison Access . | . . . . . . . . . . . Data Cores Recovered 1 | . . . . . . . . . . 1 Used 1 | . . . . . . . . . . 1 Hacking Detections 38 | . 5 . . 7 5 . 3 4 8 6 Full Trace Events 18 | . 2 . . 2 3 . 2 1 3 5 Feedback Events 2 | . . . . . . . . 1 . 1 Corruption 2 | . . . . . . . . 1 . 1 Feedback Blocked . | . . . . . . . . . . . Robot Schematics Acquired 1 | . . . . . 1 . . . . . Robots Built . | . . . . . . . . . . . Authchips . | . . . . . . . . . . . Time . | . . . . . . . . . . . Total Robot Build Rating . | . . . . . . . . . . . Part Schematics Acquired 7 | . . . . 2 1 . 1 . 3 . Parts Built 3 | . . . . . . . 2 1 . . Authchips . | . . . . . . . . . . . Time 221 | . . . . . 95 . 84 42 . . Total Part Build Rating 16 | . . . . . . . 8 8 . . Parts Repaired 4 | . . . . . . . 1 2 . 1 Time 250 | . . . . . . . 112 94 . 44 Parts Recycled . | . . . . . . . . . . . Recycled Matter . | . . . . . . . . . . . Retrieved Matter . | . . . . . . . . . . . Retrieved Components . | . . . . . . . . . . . Parts Scanalyzed 3 | . . . . 2 . . 1 . . . Part Schematics Acquired 3 | . . . . 2 . . 1 . . . Parts Damaged . | . . . . . . . . . . . Bothacking | -11 -10 -10 -10 -8 -7 -7 -7 -6 -6 -5 ------------ Run | Yrd Mat Min Sub Mat Fac Was Fac Fac Ext Fac Used RIF Installer . | . . . . . . . . . . . Robots Hacked . | . . . . . . . . . . . Non-combat . | . . . . . . . . . . . Combat . | . . . . . . . . . . . Robot Hacks Applied . | . . . . . . . . . . . Relay Couplers Released . | . . . . . . . . . . . Fabnet Peak Effective % . | . . . . . . . . . . . Robots Rewired 24 | . . . . . 1 . . . 23 . Allies Hacked . | . . . . . . . . . . . Hacks Repelled . | . . . . . . . . . . . Allies | -11 -10 -10 -10 -8 -7 -7 -7 -6 -6 -5 -------- Run | Yrd Mat Min Sub Mat Fac Was Fac Fac Ext Fac Total Allies 35 | . . . . . 1 1 . . 33 . Largest Group 21 | . . . . . 1 1 . . 21 1 Highest-Rated Group 722 | . . . . . 21 31 . . 722 159 Highest-Rated Ally 159 | . . . . . 21 31 . . 159 159 Total Orders . | . . . . . . . . . . . Ally Attacks 183 | . . . . . . 3 . . 180 . Total Damage 3820 | . . . . . . 41 . . 3779 . Kills 25 | . . . . . . . . . 25 . Allies Corrupted 1 | . . . . . . . . . 1 . Allies Melted . | . . . . . . . . . . . Intel | -11 -10 -10 -10 -8 -7 -7 -7 -6 -6 -5 ------- Run | Yrd Mat Min Sub Mat Fac Was Fac Fac Ext Fac Robot Analysis Total 3 | . . . . 1 . . . 1 . 1 Derelict Logs Recovered 3 | . . 2 1 . . . . . . . Drone Launches . | . . . . . . . . . . . Drone Recoveries . | . . . . . . . . . . . Exploration | -11 -10 -10 -10 -8 -7 -7 -7 -6 -6 -5 ------------- Run | Yrd Mat Min Sub Mat Fac Was Fac Fac Ext Fac Turns Passed 11517 | 57 813 899 1465 3770 656 111 532 491 1766 957 Spaces Moved 8563 | 43 468 668 861 2265 1047 182 519 600 1127 783 Core 241 | 11 . . . 94 . . . . 2 134 Treads 74 | . . . . 21 . . . . 53 . Legs 3282 | 32 468 668 797 1128 . . . . 189 . Wheels 64 | . . . 64 . . . . . . . Hover 46 | . . . . . . . . . . 46 Flight 4856 | . . . . 1022 1047 182 519 600 883 603 Fastest Speed 27 | 50 120 120 110 29 29 29 29 27 27 27 Average Speed 97 | 107 120 120 147 142 40 57 34 35 84 73 Slowest Speed 450 | 120 120 120 190 450 99 99 109 114 355 250 Overloaded Moves . | . . . . . . . . . . . Propulsion Burnouts . | . . . . . . . . . . . Robots Hopped 7 | . . . . . 2 . 1 1 1 2 Cave-ins Triggered . | . . . . . . . . . . . Exploration Rate (%) 54 | 3 89 99 48 97 29 76 13 20 97 23 Regions Visited 10 Branch Regions 3 Pre-discovered Areas 2 | . . 2 . . . . . . . . Known Exits Taken 3 | . . . 1 1 . . 1 . . . Unknown Exits Taken 5 | 1 1 1 . . . . . 1 1 . Scrap Searched 1 | . . 1 . . . . . . . . Spaces Dug 9 | . . . 2 . . . 5 . 2 . Terrain Destroyed 97 | . . 9 2 77 . . 5 1 3 . Melee 7 | . . . . . . . 5 . 2 . Projectile 6 | . . . 2 3 . . . 1 . . AOE 83 | . . 9 . 74 . . . . . . Terrain Rammed . | . . . . . . . . . . . Walls Destroyed . | . . . . . . . . . . . Machines Disabled . | . . . . . . . . . . . Actions | -11 -10 -10 -10 -8 -7 -7 -7 -6 -6 -5 --------- Run | Yrd Mat Min Sub Mat Fac Was Fac Fac Ext Fac Total 10835 | 53 656 726 944 2577 1211 185 818 833 1804 1028 Wait 1205 | . 143 20 . 53 86 . 229 172 390 112 Move 8540 | 42 467 667 860 2264 1043 181 516 597 1124 779 Hop 7 | . . . . . 2 . 1 1 1 2 Pick Up 59 | 7 9 3 6 18 3 1 1 4 4 3 Fast Attach 105 | . . 3 1 28 11 1 11 5 19 26 Attach 43 | 4 3 . 3 15 2 . 2 3 8 3 Detach 11 | . . . . 2 . . 2 1 5 1 Swap 53 | . 1 4 8 16 7 2 5 1 6 3 Drop 96 | . 1 7 5 35 14 . 8 4 15 7 Fire 438 | . 32 22 61 143 41 . 28 19 43 49 Melee 116 | . . . . 2 1 . 15 8 47 43 Ram . | . . . . . . . . . . . Kick . | . . . . . . . . . . . Crush . | . . . . . . . . . . . Escape Stasis 54 | . . . . . . . . 18 36 . Rewire 107 | . . . . . 1 . . . 106 . Trap 1 | . . . . 1 . . . . . . Miscellaneous . | . . . . . . . . . . . Route ------- -11/Scrapyard -10/Materials (discovered 5 exits: [*Mat x3] / [*Min x2]) -10/Mines (discovered 3 exits: [*Mat x2] / *Sub) -10/Subcaves (discovered 3 exits: *Mat x2 / [*Rec]) -8/Materials (discovered 3 exits: *Fac x3) -7/Factory (discovered 7 exits: *Fac x3 / *Sto x2 / *Low x2) -7/Waste -7/Factory -6/Factory -6/Extension (discovered 2 exits: *Fac / [*Cet]) -5/Factory History --------- Turn | Location | Event 15 | -11/Scrapyard | Discovered new exit (range 15) 58 | -11/Scrapyard | Entered Materials 166 | -10/Materials | Discovered new exit (range 15) 254 | -10/Materials | Discovered new exit (range 4) 303 | -10/Materials | Build established: Mutant 617 | -10/Materials | Discovered new exit (range 10) 686 | -10/Materials | Discovered new exit (range 3) 860 | -10/Materials | Discovered new exit (range 7) 871 | -10/Materials | Entered Mines 871 | -10/Mines | Joined a pair of Derelicts in attacking an 0b10 outpost 1054 | -10/Mines | Learned location of Zion (-6) 1120 | -10/Mines | Discovered new exit (range 13) 1178 | -10/Mines | Build established: Scavenger-Mutant 1390 | -10/Mines | Discovered new exit (range 9) 1756 | -10/Mines | Discovered new exit (range 9) 1770 | -10/Mines | Entered Subcaves 1776 | -10/Subcaves | Discovered new exit (range 10) 1862 | -10/Subcaves | Discovered new exit (range 5) 2024 | -10/Subcaves | Visited Clippyterm 2028 | -10/Subcaves | Identified exit to Materials 2028 | -10/Subcaves | Learned 40 Factory zone layouts 2082 | -10/Subcaves | Shifting Twisted Machinery released Battle Rifle 2110 | -10/Subcaves | Shifting Twisted Machinery released Piercing Trap 2207 | -10/Subcaves | Learned location of 1 exit from Materials 2336 | -10/Subcaves | Ambushed by Subdwellers from Twisted Machinery 2342 | -10/Subcaves | Core integrity fell below 50% 2726 | -10/Subcaves | Build established: Mutant 3162 | -10/Subcaves | Build established: Scavenger-Mutant 3235 | -10/Subcaves | Entered Materials 3235 | -8/Materials | Evolved 4 slots: Propulsion x1, Utility x2, Weapon x1 3236 | -8/Materials | Identified exit to Factory 3465 | -8/Materials | Garrison activated, responded to threat 3558 | -8/Materials | Lost 3 parts (1p1n1w) 3830 | -8/Materials | Lost 3 parts (2n1w) 4092 | -8/Materials | Build established: Mutant 4211 | -8/Materials | Core integrity fell below 50% 4319 | -8/Materials | Discovered exit to Factory (range 9) 4916 | -8/Materials | Build established: Infiltrator-Mutant 6046 | -8/Materials | Discovered exit to Factory (range 18) 6919 | -8/Materials | Build established: Mutant 7005 | -8/Materials | Entered Factory 7005 | -7/Factory | Evolved 2 slots: Power x1, Utility x1 7006 | -7/Factory | Identified exit to Storage 7006 | -7/Factory | Identified exit to Lower Caves 7006 | -7/Factory | Identified exit to Factory 7035 | -7/Factory | Discovered exit to Storage (range 5) 7435 | -7/Factory | Build established: Sprinter 7552 | -7/Factory | Discovered exit to Factory (range 9) 7661 | -7/Factory | Sucked down chute 7661 | -7/Factory | Entered Waste 7662 | -7/Waste | Met a frightened Derelict 7676 | -7/Waste | EMP discharged 7677 | -7/Waste | Spotted C-40 Crusher 7683 | -7/Waste | Spotted C-40 Crusher 7693 | -7/Waste | Spotted C-40 Crusher 7721 | -7/Waste | Spotted C-40 Crusher 7724 | -7/Waste | Spotted C-40 Crusher 7740 | -7/Waste | Crushed by Compactor (1 part destroyed, 2 dropped) 7748 | -7/Waste | Spotted C-40 Crusher 7767 | -7/Waste | Discovered new exit (range 12) 7772 | -7/Waste | Entered Factory 7981 | -7/Factory | Fabricated Mic. Nuclear Core (x2) 8178 | -7/Factory | Discovered exit to Factory (range 14) 8294 | -7/Factory | Repaired Broken Kinetic Spear 8304 | -7/Factory | Entered another Factory area 8304 | -6/Factory | Evolved 2 slots: Power x1, Propulsion x1 8387 | -6/Factory | Fabricated Impulse Thruster Array (x1) 8470 | -6/Factory | Repaired Adv. Shield Generator 8509 | -6/Factory | Repaired Adv. Weight Redist. System 8696 | -6/Factory | Build established: Hacker-Mutant 8778 | -6/Factory | Discovered new exit (range 15) 8795 | -6/Factory | Entered Extension 8987 | -6/Extension | Rescued A7 9286 | -6/Extension | Rescued a captive Derelict 9287 | -6/Extension | Rescued a captive Derelict 9315 | -6/Extension | Build established: Commander-Mutant 9330 | -6/Extension | Spotted B-75 Beast 9361 | -6/Extension | Spotted B-75 Beast 9395 | -6/Extension | Allies destroyed B-75 Beast 9405 | -6/Extension | Allies destroyed B-75 Beast 9433 | -6/Extension | Lost 9 allies 9517 | -6/Extension | Rescued a captive Derelict 9736 | -6/Extension | Rescued a captive Derelict 9745 | -6/Extension | Rescued a captive Derelict 9800 | -6/Extension | Rescued a captive Derelict 9801 | -6/Extension | Rescued a captive Derelict 9812 | -6/Extension | Rescued a captive Derelict 9861 | -6/Extension | Rescued a captive Derelict 9861 | -6/Extension | Rescued a captive Derelict 9883 | -6/Extension | Rescued a captive Derelict 9933 | -6/Extension | Discovered new exit (range 10) 9935 | -6/Extension | Disrupted transfer network 9935 | -6/Extension | Discovered new exit (range 6) 10350 | -6/Extension | Build established: Commander-Sprinter 10545 | -6/Extension | First assault squad dispatched 10552 | -6/Extension | Core integrity fell below 50% 10561 | -6/Extension | Entered Factory 10561 | -5/Factory | Accompanied by 1 ally (A7) 10561 | -5/Factory | Evolved 2 slots: Propulsion x1, Weapon x1 10592 | -5/Factory | Lost 15 allies 10732 | -5/Factory | Repaired Kinetic Spear 10900 | -5/Factory | Lost 4 parts (1p1n2u) 10977 | -5/Factory | Lost 4 parts (1n1u2w) 11025 | -5/Factory | Lost 4 parts (1p2n1w) 11230 | -5/Factory | Lost 6 parts (2p1n2u1w) 11258 | -5/Factory | Core integrity fell below 50% 11282 | -5/Factory | Build established: Mutant 11432 | -5/Factory | Core integrity fell below 20% 11460 | -5/Factory | Lost 4 parts (2u2w) 11487 | -5/Factory | Cargo convoy interrupted 11517 | -5/Factory | Garrison activated, responded to threat 11518 | -5/Factory | Destroyed by H-66 Slayer with Gauss Rifle Last Messages --------------- Acquired Imp. Heat Sink. System corrupted: Heat flow error (+168). Acquired Prototype Power Core. Identified Cld. Fission Core. Faulty integration triggers system corruption (+3). Dropped Faulty Cld. Fission Core. R-10 Processor collects Imp. Target Analyzer. R-10 Processor collects Tesla Rifle. RCBPVIKTF6QLCXZ=, X9F EDNFYL9 ALERT: Cargo convoy interrupted, initiating access lockdown. Acquired 30 matter. Penetrated by Slug. Antigrav System destroyed. Penetrated by Slug. Slug penetrates Wall. Penetrated by Slug. ALERT: Activating Garrison Access F003. Penetrated by Slug. Map ----- +----------------------------------------------------+ | ????????????# """" """" + #?????????????? | | ????????????# """" """"%# #?????????????? | | ????????????# """" """" # #?????????????????? | | ????????????# """" """" # #?????????????????? | | ????????????# %# #?????????????????? | | ????????????# ! # #??????????????? | | ????????????# # #??????????????? | | ????????????###+########## #????????????????"" | | ????????????# ] # #?????????????????" | | ????????????# ] # #?????????????????" | | ????????????# # ###+##### ????????" | | ############# # ?????? | | # # ??????? | | # %+ ??????? | | """" """" # # ??????? | | """" """" # # ^ ???????? | | """" """" # # ######### ???????? | | """" """" # # #?????????????????? | | """" """" # # #?????????????????? | | """" """" # # #?????????????????? | | """" """" ############## #?????????????????? | | #????????????# #?????????????????? | | #????????????# #?????????? ??????? | | #????????????# #?????????? ??????? | | #######+################## #?????????? ??????? | | ????# @ ###???????#/##????? | | ????# # ?????? #?? ? | | ????# # ????? #?# | | ##### # ?????" / #?# | | u # ?????" #?# | | ######################+### # ????"" #?# | | ????????????# # # """""" #?# | | ########????# """ """ # h # #?# | | #????# """ """ [# h # """""" #?# | | """ #????# """ """%= # ^ # """""" #?# | | """ #????# =* # + """""" #?# | | """ #????########+##### # """""" #?# | | #???????# = # # * #?# | | [ """ #???????# """ # ####+########### | | """ #???????# "R # !% [ | | """ #???????# """ """ # | | | #???????# "" """ # * | | ########???????# """ + = | | #??????????????# # | | #??????????????# # ##################+ | | #??????????????########### ########### | | #?????????????????# # # ! | | ##########????????# # # " " | | ## #????????# # # | | + ]#????????# # """ |# / | +----------------------------------------------------+ Best States ------------- Heat Dissipation 71 Energy Generation 41 Energy Capacity 570 Matter Stores 300 Matter Capacity 300 Sight Range 16 Terrain Scan Density 10 ECM Strength 2 Jamming Range 12 Additional Mass Support 9 Corruption Block 8 Armor Coverage 150 Resistance: KI 20 Resistance: TH 20 Resistance: EX 20 Resistance: EM 35 Resistance: I 20 Resistance: S 20 Resistance: P 20 Propulsion Shielding 66 Evasion (%) 64 Targeting Accuracy 11 Target Analysis 6 Recoil Reduction 1 Energy Filtering 50 Offensive Hacking 20 Item Schematics ----------------- Mic. Nuclear Core | -8/Materials | Scanalyzed Adv. Weight Redist. System | -8/Materials | Scanalyzed Power Amplifier | -7/Factory | Hacked Kinetic Spear | -7/Factory | Scanalyzed Field Propulsion Array | -6/Extension | Hacked Micro-nuke Launcher | -6/Extension | Hacked Field Propulsion Drive | -6/Extension | Hacked Robot Schematics ------------------ S-27 Virus | -7/Factory | Hacked Fabricated ------------ Mic. Nuclear Core | x2 | -7/Factory Impulse Thruster Array | x1 | -6/Factory | Preloaded Alien Tech Used ----------------- None Achievements -------------- No Signal Prolific Hacker Total Silence Universal Adapter We Are Legion Challenges ------------ None Game ------ Seed CompositeSuspensionBuckler Manual? 0 Play Time 01:41:40 Cumulative 48.9 hours Start 2024.08.31 @ 18:57:11 End 2024.08.31 @ 20:38:40 Sessions 1 Manual Loads 0 Difficulty Adventurer Special Mode None Game No. 63 Rogue 13 Adventurer 50 Explorer 0 Win Type - Total 0 Types 0/0/0/0/0/0/0/0/0 Lore% 40 Gallery% 46 Achievement% 40 Wizard Run 0 Options --------- Layout 1 ASCII 0 Keyboard 0 Movement Mouse Keybinds 0 Fullscreen 1 Font 24/Smallcaps Map View 50x35 Zoom Use 0% Tactical HUD 0 Map Filters NONE Filters NONE Steam 1 RUN: 72993feb-d119-457e-925a-cbb5da018538